fUSD/lending_fUSD_20240915
["ID","MTS","AMOUNT","RATE_DAILY","PERIOD"]
[338177813,1726362639129,-232.692915,0.0001499,2]
[338177814,1726362639139,-151.0,0.0001499,2]
[338177815,1726362639148,-151.0,0.0001499,2]
[338177816,1726362639158,-151.0,0.0001499,2]
[338177817,1726362639167,-151.0,0.0001499,2]
[338177818,1726362639176,-151.0,0.0001499,2]
[338177819,1726362639185,-151.0,0.0001499,2]
[338177820,1726362639194,-151.0,0.0001499,2]
[338177821,1726362639204,-151.55,0.0001499,2]
[338177822,1726362639214,-151.55,0.0001499,2]
[338177823,1726362639224,-151.55,0.0001499,2]
[338177824,1726362639233,-151.55,0.0001499,2]
[338177825,1726362639242,-1298.91557239,0.00014999,5]
[338177826,1726362639251,-1298.91557238,0.00014999,5]
[338177827,1726362639261,-306113.56872215,0.00015,2]
[338177828,1726362639272,-2735.53908701,0.00015,2]
[338177829,1726362639294,-1336.47690085,0.00015,2]
[338177830,1726362639305,-29492.000001,0.00015,2]
[338177831,1726362639315,-653.67901261,0.00015,2]
[338177832,1726362639326,-835.77,0.00015,2]
[338177833,1726362639337,-423.2367717,0.00015,2]
[338177835,1726362640171,-749.0,0.00013,2]
[338177836,1726362640180,-3874.88893515,0.00013122,2]
[338177837,1726362640189,-361108.52850751,0.00015,2]
[338177838,1726362640199,-908.23927251,0.00015,2]
[338177839,1726362640251,-2573.04432136,0.00015,2]
[338177840,1726362640262,-602.331354,0.00015,2]
[338177841,1726362640381,-384.522,0.00015,2]
[338177842,1726362640392,-330.38500001,0.00015,2]
[338177843,1726362640480,-310.08097878,0.00015,2]
[338177859,1726362646217,-2898.6922,0.00012899,2]
[338177860,1726362646227,-2175.6292211,0.00013344,2]
[338177861,1726362646269,-1006.8,0.00013344,2]
[338177862,1726362646281,-692.45971405,0.00013344,2]
[338177863,1726362646291,-43.39707334,0.00015,2]
[338177864,1726362646300,-3304.66774442,0.00015,2]
[338177866,1726362702362,596.67611355,0.00011164,2]
[338177867,1726362727706,314.3190561,0.00011164,2]
[338177868,1726362998829,181.27,0.00010959,2]
[338177869,1726363075239,265.09,0.00011585,2]
[338177871,1726363333806,1050.0,0.00011,2]
[338177873,1726363516558,158.09,0.00010959,2]
[338177874,1726363567584,-300.0,0.00012999,2]
[338177875,1726363577145,268.96,0.00011307,2]
[338177876,1726363594107,-500.0,0.00012999,2]
[338177877,1726363594131,-615.49990406,0.00012999,2]
[338177878,1726363594155,-500.0,0.00012999,2]
[338177879,1726363594182,-13469.99950029,0.00013,2]
[338177880,1726363607976,-1615.49990406,0.00013,2]
[338177881,1726363623792,-150.0,0.00012999,2]
[338179003,1726363832993,-1100.52168804,0.000129,2]
[338179004,1726363833043,-1815.88680289,0.000129,2]
[338179007,1726363833091,-2324.63744221,0.000129,2]
[338179008,1726363833101,-757.39872904,0.000129,2]
[338179010,1726363838582,-242.60127096,0.000129,2]
[338179011,1726363838593,-497.0536,0.000129,2]
[338179012,1726363838603,-331.61353509,0.000129,2]
[338179013,1726363838614,-160.21,0.0001299,2]
[338179014,1726363838623,-162.75927124,0.00012999,2]
[338179015,1726363838635,-14044.49605108,0.00013,2]
[338179016,1726363838645,-7541.07631005,0.00013,2]
[338179017,1726363838658,-7635.85806297,0.00013,2]
[338179018,1726363838670,-499.3273136,0.00013,2]
[338179019,1726363838752,-271.5575083,0.00013,2]
[338179020,1726363838763,-749.16801156,0.00013,2]
[338179021,1726363838776,-529.76522685,0.00013,2]
[338179022,1726363838791,-407964.5809444,0.00013,2]
[338179023,1726363838801,-313.595656,0.00013,2]
[338179024,1726363838812,-757.258615,0.00013,2]
[338179025,1726363838823,-595.52611332,0.00013,2]
[338179026,1726363838834,-291.69999996,0.00013,2]
[338179027,1726363838846,-868.46789177,0.00013,2]
[338179029,1726363839124,-29047.07754972,0.00013,2]
[338179030,1726363840567,-214.2819,0.000129,2]
[338179031,1726363840576,-7444.71810018,0.00013,2]
[338179032,1726363840587,-1600.0,0.00013,2]
[338179033,1726363840598,-544.3214498,0.00013,2]
[338179034,1726363840609,-1166.16043226,0.00013,2]
[338179035,1726363840620,-3019.104744,0.00013,2]
[338179036,1726363840708,-385.95255073,0.00013,2]
[338179037,1726363840767,-252.02583929,0.00013,2]
[338179038,1726363840779,-202418.95798903,0.00013,2]
[338179039,1726363840834,-713.50254188,0.00013,2]
[338179052,1726363843788,-503.564978,0.00012973,2]
[338179053,1726363843797,-565.10658767,0.00013,2]
[338179054,1726363843809,-8834.14917,0.00013,2]
[338179055,1726363843934,-501.98987793,0.00012973,2]
[338179056,1726363843947,-330.29699732,0.00013,2]
[338179057,1726363843958,-874.54195962,0.00013,2]
[338179058,1726363843969,-570.87999999,0.00013,2]
[338179059,1726363843980,-10582.75058417,0.00013,2]
[338179060,1726363843991,-57954.25723575,0.00013,2]
[338179061,1726363844002,-34502.1188975,0.00013,2]
[338179062,1726363844013,-4685.51966417,0.00013,2]
[338179063,1726363844114,-1185.0,0.00013,2]
[338179064,1726363844125,-704.202,0.00013,2]
[338179065,1726363844138,-539.447999,0.00013,2]
[338179066,1726363844150,-15425.2663268,0.00013,2]
[338179082,1726363844739,-1905.59622539,0.00013,2]
[338179083,1726363844750,-549.999999,0.00013,2]
[338179090,1726363846532,-519.55381381,0.00013,2]
[338179091,1726363846544,-388.20576175,0.00013,2]
[338179092,1726363846555,-1225.48002,0.00013,2]
[338179093,1726363846567,-1698.87654714,0.00013,2]
[338179094,1726363846762,-277.72958304,0.00013,2]
[338179095,1726363846773,-608.575,0.00013,2]
[338179096,1726363846820,-91397.78965876,0.00013,2]
[338179097,1726363846831,-444.6191269,0.00013,2]
[338179517,1726363873163,185.58,0.00013156,120]
[338179518,1726364021980,250.0,0.00012457,2]
[338179519,1726364079520,270.81,0.0001056,2]
[338179520,1726364100592,250.0,0.00012437,2]
[338179521,1726364100655,153.85,0.00010959,2]
[338179522,1726364118365,390.86,0.00012473,2]
[338179523,1726364195085,150.0,0.00012484,2]
[338179524,1726364218504,2714.4,0.00012481,2]
[338179528,1726364269315,500.0,0.00012494,2]
[338179531,1726364283508,345.76,0.0001251,2]
[338179533,1726364309621,-270.81,0.00012824,2]
[338179534,1726364309643,-300.0,0.00012899,2]
[338179535,1726364309663,-150.0,0.00012899,2]
[338179536,1726364309684,-1361.974,0.000129,2]
[338179537,1726364309705,-889.0117,0.000129,2]
[338179538,1726364309726,-1780.0866,0.000129,2]
[338179539,1726364309747,-2013.8635,0.000129,2]
[338179540,1726364309767,-1000.0,0.000129,2]
[338179541,1726364309788,-157.85905439,0.000129,2]
[338179542,1726364309808,-727.6397,0.000129,2]
[338179543,1726364309830,-4272.08852651,0.000129,2]
[338179544,1726364309851,-166.28508171,0.000129,2]
[338179545,1726364309871,-326.59215582,0.000129,2]
[338179546,1726364309893,-242.70455745,0.000129,2]
[338179547,1726364309913,-2500.0,0.000129,2]
[338179548,1726364309933,-500.0,0.00012973,2]
[338179549,1726364309953,-504.13840706,0.00012973,2]
[338179550,1726364309974,-232.3332902,0.00012973,2]
[338179551,1726364309994,-303.09177248,0.00012973,2]
[338179552,1726364310016,-500.93516957,0.00012973,2]
[338179553,1726364310036,-500.0,0.00012973,2]
[338179554,1726364310060,-4450.36278481,0.00013,2]
[338180302,1726364564837,805.14736243,0.00012,2]
[338180303,1726364586315,243.72,0.00011171,2]
[338180304,1726364683556,250.0,0.00012456,2]
[338180305,1726364756943,150.0,0.00012431,2]
[338180307,1726364798679,285.8,0.00012431,2]
[338180308,1726364804825,329.51,0.00012429,2]
[338180309,1726364815715,1000.0,0.00012429,2]
[338180316,1726364848207,170.95,0.00012392,2]
[338180318,1726365031898,-208.498,0.0001274,2]
[338180319,1726365031908,-186.04587028,0.000129,2]
[338180320,1726365031917,-501.79664669,0.00012973,2]
[338180321,1726365031927,-149.09948311,0.0001299,2]
[338180322,1726365037761,-766.51726521,0.000129,2]
[338180323,1726365037773,-775.05386679,0.000129,2]
[338180437,1726365040058,-3778.71695664,0.000129,2]
[338180438,1726365040067,-9.38051689,0.0001299,2]
[338180439,1726365040076,-11085.30070109,0.00012999,2]
[338180440,1726365040087,-5338.45319096,0.00012999,2]
[338180476,1726365045785,-636262.64447601,0.00012999,2]
[338180480,1726365076161,617.6873,0.0001264,2]
[338180481,1726365106129,273.22,0.0001123,2]
[338180482,1726365136177,1050.0,0.00011,2]
[338180486,1726365203077,6000.0,0.00012641,2]
[338180494,1726365222770,420.12,0.00012369,2]
[338180495,1726365241293,150.0,0.00012357,2]
[338180496,1726365313920,200.0,0.00012339,2]
[338180497,1726365326300,200.0,0.00012373,2]
[338180499,1726365331645,285.8,0.00012373,2]
[338180500,1726365379368,166.34,0.00010959,2]
[338180501,1726365382518,415.58,0.00012417,2]
[338180502,1726365437890,507.07,0.00012458,2]
[338180503,1726365465299,23900.0,0.00012476,2]
[338180504,1726365482060,533.25,0.00012492,2]
[338180519,1726365756564,250.0,0.00012238,2]
[338180521,1726365827987,840.0,0.0001216,2]
[338180522,1726365849602,259.55,0.00010218,2]
[338180523,1726365849910,259.55,0.00012482,2]
[338180525,1726366048450,23900.0,0.00012143,2]
[338180769,1726366066132,150.31,0.00012143,2]
[338180770,1726366067856,186.49,0.00012175,2]
[338180771,1726366161135,1807.1,0.00012228,2]
[338180773,1726366231820,-796.0,0.00012646,2]
[338180774,1726366231831,-354.4,0.00012646,2]
[338180775,1726366232014,-441.6,0.00012646,2]
[338180776,1726366232024,-796.0,0.00012646,2]
[338180777,1726366232034,-796.0,0.00012646,2]
[338180778,1726366232043,-276.29578406,0.00012646,2]
[338180779,1726366232053,-1500.0,0.00012762,2]
[338180780,1726366232062,-150.0,0.00012795,2]
[338180781,1726366232071,-1500.0,0.00012868,2]
[338180782,1726366232080,-150.0,0.00012887,2]
[338180783,1726366232089,-193.51786641,0.00012899,2]
[338180784,1726366232099,-150.0,0.00012899,2]
[338180785,1726366232108,-487.7107,0.000129,2]
[338180786,1726366232116,-2619.02564953,0.000129,2]
[338180787,1726366238354,-2060.96564322,0.000129,2]
[338180789,1726366239970,-0.24290327,0.000129,2]
[338180790,1726366239982,-57883.41640398,0.000129,2]
[338180791,1726366239992,-35519.0733,0.000129,2]
[338180792,1726366240001,-200.3888,0.000129,2]
[338180793,1726366240011,-5140.854,0.000129,2]
[338180794,1726366240020,-186.61881947,0.000129,2]
[338180795,1726366240029,-4514.70084671,0.000129,2]
[338180796,1726366240039,-3546.85872576,0.000129,2]
[338180797,1726366240048,-327.13282787,0.000129,2]
[338180798,1726366240057,-166.28508171,0.000129,2]
[338180799,1726366240067,-1582.87159586,0.00012945,2]
[338180800,1726366240076,-499.99,0.00012945,2]
[338180801,1726366240085,-999.99,0.00012945,2]
[338180802,1726366240095,-258.01212964,0.00012956,2]
[338180803,1726366240104,-5840.79,0.00012956,2]
[338180804,1726366240113,-323.01,0.00012956,2]
[338180805,1726366240122,-179.99,0.00012956,2]
[338180806,1726366240131,-150.0,0.00012971,2]
[338180807,1726366240140,-150.99,0.00012971,2]
[338180808,1726366240149,-150.99,0.00012971,2]
[338180809,1726366240158,-299.99,0.00012971,2]
[338180810,1726366240167,-499.99,0.00012971,2]
[338180811,1726366240177,-600.25,0.00012971,2]
[338180812,1726366240186,-4149.68,0.00012971,2]
[338180813,1726366240196,-500.0,0.00012973,2]
[338180814,1726366240205,-168.20387966,0.00012984,2]
[338180815,1726366240214,-158.49,0.0001299,2]
[338180816,1726366240223,-155.07166074,0.00012991,2]
[338180817,1726366240233,-570931.03547394,0.00012999,2]
[338180818,1726366240242,-321.42125,0.00012999,2]
[338180819,1726366240251,-321.42126,0.00012999,2]
[338180820,1726366240260,-321.42126,0.00012999,2]
[338180821,1726366240271,-321.42126,0.00012999,2]
[338180822,1726366240280,-321.42126,0.00012999,2]
[338180823,1726366240289,-321.42126,0.00012999,2]
[338180824,1726366240299,-150.0,0.00012999,2]
[338180825,1726366240308,-21923.65787968,0.00013,2]
[338180826,1726366240317,-3739387.71854487,0.00013,2]
[338180827,1726366240326,-938000.34537436,0.00013,2]
[338180828,1726366240377,-276.29476686,0.00013,2]
[338180886,1726366246070,-10975.89025193,0.00013,2]
[338180887,1726366246243,-5999.60426292,0.00013,2]
[338181518,1726366286431,180.11,0.00010959,2]
[338181519,1726366424389,274.03,0.0001129,2]
[338181522,1726366847277,154.04,0.00010959,2]
[338181523,1726366938747,1050.0,0.00011,2]
[338181524,1726366964140,280.09,0.00010328,2]
[338181525,1726366964186,280.09,0.00012592,2]
[338181526,1726367066832,300.68,0.00012641,4]
[338181527,1726367120879,155.99,0.00012316,2]
[338181529,1726367154701,170.89838477,6.94e-05,2]
[338181530,1726367174114,399.15,0.00012208,2]
[338181534,1726367302703,250.0,0.00012125,2]
[338181539,1726367326485,250.0,0.00012125,2]
[338181541,1726367367994,531.54,0.00012179,2]
[338181542,1726367394070,14992.08,0.00012179,2]
[338181580,1726367438362,-1500.0,0.00012731,2]
[338181581,1726367438372,-2190.0,0.00012741,2]
[338181582,1726367438381,-1500.0,0.00012803,2]
[338181583,1726367438391,-1500.0,0.0001282,2]
[338181584,1726367438400,-1500.0,0.00012848,2]
[338181585,1726367438409,-446.11207467,0.00012878,2]
[338181586,1726367438419,-22096.46954812,0.0001288,2]
[338181587,1726367438429,-1006.84662777,0.00012899,2]
[338181588,1726367438439,-887.09,0.00012899,2]
[338181589,1726367438450,-150.0,0.00012899,2]
[338181590,1726367438459,-3201.0144,0.000129,2]
[338181591,1726367438468,-2905.6029,0.000129,2]
[338181592,1726367438478,-1000.0,0.000129,2]
[338181593,1726367438494,-4936.20427915,0.000129,2]
[338181594,1726367438506,-186.32749074,0.000129,2]
[338181596,1726367438516,-1387.39,0.000129,2]
[338181598,1726367438525,-536.86,0.000129,2]
[338181600,1726367438535,-499.99,0.000129,2]
[338181602,1726367438544,-4290.94555947,0.000129,2]
[338181604,1726367438553,-500.0,0.00012973,2]
[338181606,1726367438562,-35128.45,0.00012973,2]
[338181608,1726367438572,-510.98011248,0.00012973,2]
[338181610,1726367438581,-164.42,0.0001299,2]
[338181612,1726367438590,-386.21,0.00012999,2]
[338181613,1726367438599,-166.53490925,0.00012999,2]
[338181614,1726367438609,-240.027,0.00012999,2]
[338181615,1726367438620,-563.3466052,0.00012999,2]
[338181616,1726367438630,-18522.63884767,0.00013,2]
[338181617,1726367438640,-156734.8959419,0.00013,2]
[338181618,1726367438650,-1089.7,0.00013,3]
[338181619,1726367438659,-150.0,0.00013,2]
[338181620,1726367438669,-610736.70951983,0.00013,2]
[338181623,1726367440073,-112301.90411632,0.00013,2]
[338181624,1726367440190,-1076.0,0.00013,2]
[338181625,1726367440324,-20762.77947598,0.00013,2]
[338181713,1726367443099,-326183.56663789,0.00013,2]
[338181714,1726367443110,-571240.3329349,0.00013,2]
[338181715,1726367443121,-865.35729335,0.00013,2]
[338181716,1726367443132,-10816.61358908,0.00013,2]
[338181717,1726367443143,-29778.88781335,0.00013,2]
[338181718,1726367444074,-2851.5,0.00013,2]
[338181719,1726367444086,-227403.0727903,0.00013,2]
[338181720,1726367444131,-8500.0,0.00013,2]
[338181721,1726367444142,-317.58278286,0.00013,2]
[338181722,1726367446303,-506.45548795,0.00013,2]
[338181731,1726367446526,-448.48,0.00013,2]
[338181760,1726367492114,291.7,0.00011379,2]
[338181761,1726367508785,156.27,0.00010959,2]
[338181762,1726367626745,1000.0,0.0001256,2]
[338181764,1726367672282,174.43,0.00012539,2]
[338181766,1726367847580,250.0,0.00012517,2]
[338181767,1726367878736,250.0,0.00012529,2]
[338181768,1726368000960,157.38,0.00010959,2]
[338181769,1726368020811,297.03,0.0001123,2]
[338181771,1726368133932,169.84,0.00012357,2]
[338181773,1726368152739,200.0,0.00012342,2]
[338181774,1726368214906,273.51,0.00012395,2]
[338181777,1726368446924,250.0,0.00012513,2]
[338181778,1726368476386,250.0,0.00012523,2]
[338181779,1726368547889,166.34,0.00010959,2]
[338181785,1726368598452,302.04,0.00010434,2]
[338181786,1726368618704,178.38,0.00012318,2]
[338181787,1726368632525,-302.04,0.00012698,2]
[338181788,1726368632534,-118.776,0.00012774,2]
[338181789,1726368632546,-1381.224,0.00012774,2]
[338181790,1726368632555,-1755.25525247,0.0001287,2]
[338181791,1726368632564,-1500.0,0.0001289,2]
[338181792,1726368632573,-150.0,0.00012899,2]
[338181793,1726368632582,-300.0,0.00012899,2]
[338181794,1726368632591,-2083.3018,0.000129,2]
[338181795,1726368632600,-223.7959,0.000129,2]
[338181796,1726368632610,-4442.58385119,0.000129,2]
[338181797,1726368632619,-186.18182636,0.000129,2]
[338181798,1726368632627,-698.97436992,0.000129,2]
[338181800,1726368632640,-731.21407502,0.000129,2]
[338181803,1726368632653,-764.1593386,0.000129,2]
[338181814,1726368638501,-654.30462,0.000129,2]
[338181815,1726368638511,-164.75902827,0.000129,2]
[338181816,1726368638520,-136.20693051,0.0001297,2]
[338181817,1726368638555,-518.09767949,0.0001297,2]
[338181818,1726368638566,-1500.0,0.00012971,2]
[338181819,1726368638575,-1500.0,0.00012971,2]
[338181820,1726368638584,-500.0,0.00012973,2]
[338181821,1726368638594,-400.42,0.0001299,2]
[338181822,1726368638604,-290.44662321,0.0001299,2]
[338181823,1726368638613,-156.0954197,0.0001299,2]
[338181824,1726368638622,-971.0,0.00013,2]
[338181825,1726368638631,-150.99,0.00013,2]
[338181826,1726368638640,-4352.9502776,0.00013,2]
[338181827,1726368638652,-491.77976376,0.00013,2]
[338181828,1726368638664,-365.4187645,0.00013,2]
[338181847,1726368641082,-905.135,0.00013,2]
[338181849,1726368643464,-3146.03561798,0.00013,2]
[338181850,1726368643475,-758997.9253639,0.00013,2]
[338181908,1726368646347,-564.2637225,0.00013,2]
[338181913,1726368646530,-376.87925389,0.00013,2]
[338181915,1726368650860,763.36,0.00010959,2]
[338181916,1726368741585,1050.0,0.00011,2]
[338181917,1726368960443,250.0,0.00012613,2]
[338181919,1726369001036,647.2,0.00012625,2]
[338181920,1726369017917,23900.0,0.00012625,2]
[338181921,1726369084169,250.0,0.00012609,2]
[338181922,1726369120689,292.49,0.00011326,2]
[338181923,1726369172152,185.36,0.00010959,2]
[338181925,1726369558294,169.47,0.00012574,2]
[338181926,1726369576680,250.0,0.00012582,2]
[338181927,1726369619750,298.34,0.00010651,2]
[338181928,1726369807106,154.18,0.00010959,2]
[338181949,1726369840808,-580.8631,0.0001287,2]
[338181950,1726369840817,-300.0,0.00012899,2]
[338181952,1726369840826,-3998.32546608,0.000129,2]
[338181954,1726369840836,-186.18182636,0.000129,2]
[338181956,1726369840845,-327.13282783,0.000129,2]
[338181958,1726369840855,-2129.1811118,0.000129,2]
[338181960,1726369840864,-298.34,0.00012915,2]
[338181962,1726369840873,-28389.29709428,0.0001299,2]
[338181999,1726369876114,1000.0,0.00012283,2]
[338182000,1726369979734,11509.0,0.000101,5]
[338182001,1726369980002,11509.0,0.000101,3]
[338182002,1726369987022,277.94438969,0.00012623,2]
[338182005,1726370090107,283.63,0.00012205,2]
[338182006,1726370139737,250.0,0.00012148,2]
[338182007,1726370177161,155.73,0.00012067,2]
[338182008,1726370207991,288.98,0.00010147,2]
[338182009,1726370208434,288.98,0.00012411,2]
[338182010,1726370271870,370.13,0.00012091,2]
[338182011,1726370280313,2569.6,0.00012064,2]
[338182012,1726370355784,250.0,0.00012047,2]
[338182013,1726370372348,173.65,0.00012086,2]
[338182014,1726370375082,467.04,0.00012086,2]
[338182015,1726370417619,200.0,0.00012077,2]
[338182016,1726370495208,155.87,0.00010959,2]
[338182017,1726370539421,7860.38,0.0001513,120]
[338182018,1726370543660,1050.0,0.00011,2]
[338182019,1726370593641,580.53,0.00012041,2]
[338182020,1726370641966,250.0,0.00012081,2]
[338182021,1726370679775,744.51,0.000125,2]
[338182022,1726370719634,7602.42572855,9e-05,2]
[338182023,1726370730438,277.9443897,0.00012616,2]
[338182024,1726370754043,279.36,0.00010114,2]
[338182025,1726370754313,279.36,0.00012378,2]
[338182026,1726370754945,5902.82437851,6.94e-05,2]
[338182029,1726370824653,185.06,0.00012059,2]
[338182030,1726370878046,209.31906155,0.0001,2]
[338182032,1726370913921,7051.10217243,0.00010998,2]
[338182039,1726370951194,174.92,0.00012022,2]
[338182040,1726370974436,250.0,0.00012041,2]
[338182041,1726371002999,11509.0,0.000102,5]
[338182049,1726371031613,-521.124372,0.00012698,2]
[338182071,1726371031783,-66.08258938,0.00012698,2]
[338182072,1726371031795,-150.0,0.00012777,2]
[338182073,1726371031804,-150.0,0.00012798,2]
[338182074,1726371031813,-150.0,0.00012823,2]
[338182075,1726371031822,-79.47991062,0.00012859,2]
[338182076,1726371031833,-516.47725402,0.00012859,2]
[338182077,1726371031848,-502.90722895,0.00012859,2]
[338182078,1726371031859,-368.14853866,0.00012859,2]
[338182079,1726371031870,-537.31713837,0.00012859,2]
[338182080,1726371031882,-1936.87128191,0.00012859,2]
[338182081,1726371031893,-307.8334,0.00012859,2]
[338182082,1726371031997,-4657.41822521,0.00012859,2]
[338182083,1726371032007,-300.0,0.00012859,2]
[338182084,1726371032016,-58.13281124,0.0001286,2]
[338182085,1726371032026,-600.0,0.0001286,2]
[338182086,1726371032037,-841.86718876,0.0001286,2]
[338182087,1726371032046,-150.0,0.00012879,2]
[338182088,1726371032055,-1980.88716373,0.0001288,2]
[338182089,1726371032066,-1390.89940899,0.0001288,2]
[338182090,1726371032077,-1752.96961553,0.0001288,2]
[338182091,1726371032088,-3686.99397903,0.0001288,2]
[338182092,1726371032099,-285.8635813,0.0001288,2]
[338182093,1726371032113,-255.5393984,0.0001288,2]
[338182094,1726371032124,-1423.1752572,0.0001288,2]
[338182095,1726371032137,-32481.73333589,0.0001288,2]
[338182096,1726371032150,-1264.61004082,0.0001288,2]
[338182097,1726371032163,-2053.25173375,0.0001288,2]
[338182098,1726371032174,-445.64999998,0.0001288,2]
[338182099,1726371032219,-251.03914311,0.0001288,2]
[338182100,1726371032230,-997.63908765,0.0001288,2]
[338182101,1726371032242,-865.31617129,0.0001288,2]
[338182102,1726371034052,11509.0,0.000102,5]
[338182107,1726371037879,-6511.07676179,0.0001288,2]
[338182115,1726371039861,-1730.84596,0.0001288,2]
[338182116,1726371039880,-504.152,0.0001288,2]
[338182117,1726371039898,-253.44497898,0.0001288,2]
[338182118,1726371039916,-556.86577081,0.0001288,2]
[338182119,1726371039934,-7079.10195802,0.0001288,2]
[338182120,1726371040050,-2073.07590236,0.0001288,2]
[338182121,1726371040065,-499.99,0.00012889,2]
[338182122,1726371040080,-999.99,0.00012889,2]
[338182123,1726371040095,-3598.49291949,0.0001289,2]
[338182124,1726371040109,-2514.0003,0.0001289,2]
[338182125,1726371040120,-1000.0,0.0001289,2]
[338182126,1726371040357,-1725.6716,0.0001289,2]
[338182127,1726371040370,-3955.2547,0.0001289,2]
[338182128,1726371040379,-5859.1509,0.0001289,2]
[338182129,1726371040389,-410.3038,0.0001289,2]
[338182130,1726371040398,-179.99,0.00012893,2]
[338182131,1726371040408,-150.99,0.00012899,2]
[338182132,1726371040418,-258.693,0.00012899,2]
[338182133,1726371040427,-5817.5,0.00012899,2]
[338182134,1726371040436,-154.46137988,0.00012899,2]
[338182135,1726371040445,-1154.908,0.000129,2]
[338182136,1726371040454,-247.3215,0.000129,2]
[338182137,1726371040463,-157.88473977,0.000129,2]
[338182138,1726371040473,-182.51899767,0.000129,2]
[338182139,1726371040482,-7500.0,0.000129,2]
[338182140,1726371040491,-230.48623985,0.000129,2]
[338182141,1726371040500,-328.86262433,0.000129,2]
[338182142,1726371040509,-2340.35826278,0.000129,2]
[338182143,1726371040518,-150.0,0.00012911,2]
[338182144,1726371040528,-180.68858858,0.00012947,2]
[338182145,1726371040537,-448.0185,0.00012959,2]
[338182146,1726371040546,-500.0,0.00012973,2]
[338182147,1726371040555,-503.82406782,0.00012973,2]
[338182148,1726371040565,-502.08720999,0.00012973,2]
[338182149,1726371040574,-501.75664782,0.00012973,2]
[338182150,1726371040583,-503.8626189,0.00012973,2]
[338182151,1726371040592,-164313.21193138,0.0001299,2]
[338182152,1726371040601,-1151.2234818,0.0001299,2]
[338182153,1726371040611,-1151.2234818,0.0001299,2]
[338182154,1726371040621,-1151.2234818,0.0001299,2]
[338182155,1726371040630,-150.0,0.00012992,2]
[338182156,1726371040639,-500.7188829,0.00012999,2]
[338182157,1726371040649,-500.0,0.00012999,2]
[338182158,1726371040658,-500.0,0.00012999,2]
[338182159,1726371040667,-505.89900345,0.00012999,2]
[338182160,1726371040676,-500.0,0.00012999,2]
[338182161,1726371040685,-500.0,0.00012999,2]
[338182162,1726371040694,-500.0,0.00012999,2]
[338182163,1726371040703,-310.98376528,0.00012999,2]
[338182164,1726371040713,-500.0,0.00012999,2]
[338182165,1726371040722,-500.0,0.00012999,2]
[338182166,1726371040731,-500.0,0.00012999,2]
[338182167,1726371040740,-500.0,0.00012999,2]
[338182168,1726371040750,-500.0,0.00012999,2]
[338182169,1726371040759,-500.0,0.00012999,2]
[338182170,1726371040769,-500.0,0.00012999,2]
[338182171,1726371040778,-500.0,0.00012999,2]
[338182172,1726371040787,-500.0,0.00012999,2]
[338182173,1726371040796,-500.0,0.00012999,2]
[338182174,1726371040805,-500.0,0.00012999,2]
[338182175,1726371040815,-500.0,0.00012999,2]
[338182176,1726371040824,-500.0,0.00012999,2]
[338182177,1726371040834,-236.23108211,0.00012999,2]
[338182178,1726371040848,-500.0,0.00012999,2]
[338182179,1726371040857,-500.0,0.00012999,2]
[338182180,1726371040867,-500.0,0.00012999,2]